Workbook

Sheet FLAMMABLE STORE FIRE SUPRESSION
B1: ANNEXURE O
B2: Fire suppression for the flammbale store and substations
B3: DESCRIPTION | C3: UNIT | D3: QTY | E3: RATE | F3: AMOUNT
B4: FIRE SUPPRESSION AND DETECTION SYSTEM
B5: PREAMBLES
B6: Tenderers are referred to the General Preamble For Trades – 2017 as published by The Association of South African Quantity Surveyors as well as the Supplementary preambles under the section “Works Information-Specifications, standards & workmanship”
B8: ALL MATERIALS, EQUIPMENT AND INSTALLATION METHODS TO BE IN STRICT COMPLIANCE WITH AUTOMATIC SPRINKLER INSTALLATION FOR FIRE FIGHTING PURPOSES (SANS 10287) AND HYDRANTS (SANS 1128)
B10: PRELIMINARY AND GENERAL
B12: CONTRACTOR'S ESTABLISHMENT ON SITE AND GENERAL OBLIGATIONS
B14: FIXED CHARGES ITEMS
B16: Contractual Requirements | C16: Sum | D16: 1
B18: Site Offices and Storage Sheds including temporary fencing. | C18: Sum | D18: 1
B20: Ablution and latrine facilities | C20: Sum | D20: 1
B22: Tools and Equipment | C22: Sum | D22: 1
B24: Remove contractor's site establishment | C24: Sum | D24: 1
B26: TIME RELATED ITEMS
B28: Site Offices and Storage Sheds | C28: Month | D28: 3
B30: Ablution and latrine facilities | C30: Month | D30: 3
B32: Tools and Equipment | C32: Month | D32: 3
B34: Company/head office overhead cost. | C34: Month | D34: 3
B36: Living accomodation | C36: Month | D36: 3
B38: Supervision | C38: Month | D38: 3
B40: Quality management | C40: Month | D40: 3
B42: HEALTH AND SAFETY
B44: Prepare, submit and obtain approval of safety plan/file and lodge same on site. | C44: Sum | D44: 1
B46: Personal Protective Equipment | C46: Sum | D46: 1
B48: Transportation of Employees | C48: Month | D48: 3
B50: Maintenance and revision(s), where necessary, of the safety plan/file and all activities (tool box talks, audits etc) necessary to ensure compliance with the provision of the OHS act and project safety specification | C50: Month | D50: 3
B52: Environmental management | C52: =C50 -> Month | D52: 3
B55: Preliminary and General | F55: =SUM(F16:F54) -> 0
B58: FIRE SUPRESSION
B60: Installation of Control Valve 80mm Diameter including Full Trim | C60: No | D60: 1
B62: 80mm Diameter Flow Switch | C62: No | D62: 1
B64: 80mm Diameter Isolating Valves | C64: No | D64: 3
B66: Sprinkler Heads | C66: No | D66: 9
B68: 100mm Connecting Mains from Pump Supply | C68: No | D68: 1
B70: 80mm Diameter Mains | C70: No | D70: 25
B72: 32mm diameter range pipes | C72: No | D72: 15
B74: New Firedos Gen 111 foam proportioner System | C74: No | D74: 1
B76: Water Rising Position Indicator | C76: No | D76: 1
B78: Foam Dosing/Foam Retuen Position Indicator | C78: No | D78: 1
B80: Tank Skid 4000l Stainless Steel Construction Completed with Stubs and and Manholes | C80: No | D80: 1
B82: Foam Concentrate 3% AFF APS Mousol | C82: No | D82: 1
B84: Gate Valves 100mm | C84: No | D84: 1
B86: 100mm Non Return Valve Reverse flow Preventor | C86: No | D86: 1
B88: Strainer 100mm | C88: No | D88: 1
B90: 32mm Dia hangers and Rods | C90: No | D90: 15
B92: 80mm Dia Hangers and Dors | C92: No | D92: 15
B94: Klambons 100mm Diameter | C94: No | D94: 2
B96: Klambons 80mm Diameter | C96: No | D96: 7
B98: M8X 65mm Rawl Bolts | C98: No | D98: 1
B100: M12x 90mm Rawl bolts | C100: No | D100: 1
B102: Connection to Existing Water System | C102: No | D102: 1
B104: Storz Connection Foam Inlet | C104: No | D104: 1
B106: Signage | C106: No | D106: 10
B108: Fire Detection Design Works | C108: No | D108: 1
B110: Flame Detector | C110: No | D110: 2
B112: Control Panel Addressable | C112: No | D112: 1
B114: Fire Cable PH30 | C114: No | D114: 1
B116: Manual Call Points | C116: No | D116: 2
B118: Strobe & Sounders | C118: No | D118: 2
B120: Site Work | C120: No | D120: 1
B122: Full COC Compliance | C122: No | D122: 1
B124: Cylindrical welded tank 5.1m dia x 6m high 120m3 effective cap. Tank complete with pipe connection, cat ladder. To be painted with 2 coats of black bituman internally and 1 coat of of red oxide Primer, 2 coats of universal under coat and 2 coats enamel signal red externally. | C124: No | D124: 1
B126: Diseal engine driven pump 2500L/min @350Kpa +120% | C126: No | D126: 1
B128: Single pump House Pipework 200mm x 100mm delivery x 100mm Test line | C128: No | D128: 1
B130: Trunk main infill line 100mm pipe | C130: No | D130: 6
B132: Break into existing fire hydrant for infill line | C132: Item | D132: 1
B134: Provisional sum for concrete plinth for the tank stand (Fifty Thousound Rands) | C134: PSum | D134: 1 | E134: R 50,000.00
B136: FIRE DETECTION SYSTEM
B137: Control System complete with all sensors, pilot valves, automatic starters and field devices, Remote Repeater Control Panel for Control Room and Sets Operating and Maintenance Manuals. As well as the 3 Phase cable supply connection from Main DB inside 50mm diameter sleev.
B138: The supply and the installation of the Fire Detection System | C138: Item | D138: 1
B140: FIRE SUPPRESSION SYSTEM
B141: The supply and installation of the Fire Suppression System at the HQ Archive Room | C141: Item | D141: 1
B144: SMOKE VENTILATORS
B145: CFD – 2850-S, slope mounted smoke ventilators manufactured entirely from, Galvanised material. Ventilators complete with 93’C fusible link system. | C145: No | D145: 1
B147: CO² FIRE EXTINGUISHERS
B149: 9 kg Dry Chemical Powder Fire Extinguisher (SABS 810, 889) | C149: No | D149: 6
B152: FIRE HOSE REELS
B153: 30m Fire hose reel complete, SANS 543 approved with SANS 1186(1) | C153: No | D153: 4
B154: Steel Wall Mounted Hose Cabinet with 6 x Spare sprinkler heads, sprinkler wrench for each type of sprinkler | C154: No | D154: 2
B155: Legs/Stands | C155: No | D155: 2
B156: Lay Flat Hose 13 Bar | C156: No | D156: 6
B157: Fire Hose Nozzle | C157: No | D157: 2
B158: Header pipe with 2 x ICV valve connections | C158: No | D158: 2
B161: HYDRANTS
B162: Hydrant hand wheel type landing valve with 65mm ID outlet with SABS 1186(1) signage | C162: No | D162: 2
B163: Hydrant Key | C163: No | D163: 2
B165: PLUMBING WORK
B167: Allow the amount of R 50 000 (Fifty Thousand Rands) for all the Plumbing & pipe works | C167: PSUM | D167: 1 | E167: R 50,000.00
B170: SIGNAGE
B171: Photo Luminescent Signs
B172: Symbolic Safety Signs | C172: No | D172: 270
B175: PAINTING AND CORROSION PROTECTION
B176: Allow for preperation and painting of all exposed risers to the requirements of the regulations and/or specifications of the client, principal agent or engineer. | C176: Item | D176: 1
B178: TESTING AND COMMISSIONING | C178: Item | D178: 1
B180: SUB-TOTAL A
B183: VAT | E183: 15%
B185: Amount inclusive of VAT

Sheet duPL (hidden)
B2: FIRE SUPPRESSION PROJECT - FIRE PROTECTION BOQ
B3: Cost Estimate - Fire Suppression | H3: Administration Building | I3: Construction Services | J3: RRR Quantum Training B | K3: Training Building "A" | L3: Old Bicycle Shop | M3: Training Building "B' | N3: Training Building "C" | O3: Canteen | P3: Clinic | Q3: Security Risk Management Building | R3: Fire Station B | S3: Main Store Pump Store | T3: Balancing Transformers Pump House | U3: Houses | V3: Flats | W3: Consumer Sub-Station | X3: Electrical Sub-Station | Y3: Stand by Generators | Z3: Central Stores ) Returned Equipment From Projects | AA3: MAN Truck Building | AB3: Central Stores "Store" | AC3: Flammable Liquid Container | AD3: Spray Booth | AE3: Yard Area & Storage Rooms | AF3: Bearing & Machining Building | AG3: Power Generation Services 10000L Hazardous Chem Store | AH3: Transformer & Switchgear Oil Deport | AI3: Transformer & Switchgear 600&200 Ton Workshop | AJ3: Transformer & Switchgear Receipt/Dispatch | AK3: Transformer and Switchgear Engineering | AL3: Transformer & Switchgear - Maintenance | AM3: Turbo Gen Services Rotablle Modular Facility Warehouse 1 | AN3: Turbo Gen Services Rotable Modular Facility Warehpuse 2 | AO3: Turbo Gen Services Satellite Store | AP3: Turbo Gen Services Workshop | AQ3: Logistics and Waste Offices | AR3: Logistics and Waste Yard & Workshops | AS3: Log. & Waste Fuel Dispensing | AT3: Log. & Waste Rotran Warehouse | AU3: Log. & Waste Storage Containers | AV3: Log. & Waste Multi Axel New Yard | AW3: Bulk Material Services Mobile Plant Workshops | AX3: Pole Yard | AY3: Main Store | AZ3: Oil Laboratory | BA3: Fire Safety Systems Within Premises | BB3: Management Systems
B4: ITEM | C4: DESCRIPTION | D4: UNIT | E4: QTY | F4: RATE | G4: AMOUNT | H4: 6 Storey | I4: 3 Storey | J4: 2 Storey | K4: 3 Sections | L4: Single Storey | M4: Warehouse | N4: 2 Storey | O4: Single Storey | P4: Single Storey | Q4: Single Storey | R4: Offices & Few Bays | S4: Throughout Premises | T4: Throughout Premises | U4: Privately Owned | V4: 3 Storey | W4: 2 Storey | X4: 3 Room Single Storey | Y4: Storage | Z4: Lofty | AA4: Lofty | AB4: Lofty | AC4: Containers | AD4: Storage Area | AE4: Single Storey | AF4: Single Storey | AG4: Single Storey
C5: FIRE HYDRANT, HOSE REEL AND BOOSTER PUMP INSTALLATION
C7: PREAMBLES
C9: Tenderers are referred to the General Preamble For Trades – 2017 as published by The Association of South African Quantity Surveyors as well as the Supplementary preambles under the section “Works Information-Specifications, standards & workmanship”
B11: 1 | C11: ALL MATERIALS, EQUIPMENT AND INSTALLATION METHODS TO BE IN STRICT COMPLIANCE WITH AUTOMATIC SPRINKLER INSTALLATION FOR FIRE FIGHTING PURPOSES (SANS 10287) AND HYDRANTS (SANS 1128)
C12: CO² Fire Extinguishers | G12: To be calculated
B13: 2 | C13: Fire Hydrant 65mm Diameter (SANS 1128 Part 1) | D13: No | E13: =SUM(H13:BA13) -> 0 | F13: =1406.25*1.35 -> R 1,898.44 | G13: =ROUND(E13*F13,2) -> 0
B14: 3 | C14: Photo Luminescent Signs 190 x 190 | D14: No | E14: 4041 | F14: =167.7*1.35 -> R 226.40 | G14: =ROUND(E14*F14,2) -> R914,862.20 | H14: 500 | I14: 50 | J14: 20 | K14: 20 | L14: 20 | M14: 20 | N14: 20 | O14: 30 | P14: 16 | Q14: 30 | R14: 20 | S14: 50 | T14: 20 | U14: 30 | V14: 150 | W14: 50 | X14: 50 | Y14: 25 | Z14: 100 | AA14: 50 | AB14: 100 | AC14: 30 | AD14: 50 | AE14: 100 | AF14: 80 | AG14: 200 | AH14: 100 | AI14: 100 | AJ14: 50 | AK14: 100 | AL14: 100 | AM14: 200 | AN14: 200 | AO14: 200 | AP14: 150 | AQ14: 80 | AR14: 100 | AS14: 100 | AT14: 200 | AU14: 50 | AV14: 20 | AW14: 100 | AX14: 10 | AY14: 250 | AZ14: 50 | BA14: 50
B15: 4 | C15: 4. 5 kg Dry Chemical Powder Fire Extinguisher (SABS 810, 889) | D15: No | E15: 0 | F15: =513.5*1.35 -> R 693.23 | G15: To be calculated | H15: To Be Calculated
B16: 5 | C16: 9 kg Dry Chemical Powder Fire Extinguisher (SABS 810, 889) | D16: No | E16: =SUM(H16:BA16) -> 248 | F16: =682.5*1.35 -> R 921.38 | G16: =ROUND(E16*F16,2) -> R228,501.00 | H16: 78 | I16: 36 | J16: 19 | K16: 19 | L16: 9 | M16: 21 | N16: 12 | O16: 19 | P16: 3 | Q16: 1 | R16: 2 | S16: 2 | T16: 2 | AA16: 5 | AB16: 20
B17: 6 | C17: 25mm Union Piping inlcuding Union pipes, Bar Pressure Gauge, Isolator Valves. 15mm - 50mm Ball valves, 20mm - 110mm Black Mild Steel Pipes, 32mm - 110mm Equal Tee Pieces, 32 x 25mm to 110 x 80mm Unequal Tee Pieces, 25mm to 110m 90 ° Bends, Reducers, Pipe Hangers, End Caps, Weld on Sockets ,"kennedy" Monitored Valves, "Amri" Butterfly Valves. etc. | D17: Item | E17: 0 | F17: =25000*0.35 -> R 8,750.00 | G17: To be calculated
B18: 7 | C18: 30m Fire hose reel complete with wall mounted bracket, hose guide, nozzles, SANS 543 approved with SANS 1186(1) signage | D18: No | E18: 40 | F18: =2839.54*1.35 -> R 3,833.38 | G18: =ROUND(E18*F18,2) -> R153,335.16 | H18: =16-6 -> 10 | I18: =7-2 -> 5 | K18: 4 | L18: 2 | M18: 6 | N18: 2 | O18: 4 | P18: 1 | R18: 1 | AA18: 1 | AB18: 4
E19: 0
B20: 8 | C20: Hydrant hand wheel type landing valve with 65mm ID outlet with SABS 1186(1) signage | D20: No | E20: 0 | F20: =2397.15*1.35 -> R 3,236.15 | G20: To be calculated
B21: 9 | C21: 65mm Sprinkler booster connection for fire brigade complete with connection | D21: No | E21: 12 | F21: =5625*1.35 -> R 7,593.75 | G21: To be calculated | AG21: 2 | AH21: 2 | AI21: 2 | AJ21: 2 | AK21: 2 | AL21: 2
B22: 10 | C22: 150mm Header pipe with 2 x ICV valve connections | D22: No | E22: 0 | F22: =8437.5*1.35 -> R 11,390.63 | G22: =ROUND(E22*F22,2) -> 0
B23: 11 | C23: Wall mounted cabinet with 6 x Spare sprinkler heads, sprinkler wrench for each type of sprinkler | D23: No | E23: 9 | F23: =5343.75*1.35 -> R 7,214.06 | G23: To be calculated | S23: 2 | T23: 1 | Z23: 3 | AB23: 3
B24: 12 | C24: Fire Hose Box; 3 x 30m (65mm diameter) thermoplastic lined fire hose with 65mm couplings and straight through nozzle to SANS Standards | D24: No | E24: 74 | F24: =12000*1.35 -> R 16,200.00 | G24: =ROUND(E24*F24,2) -> R1,198,800.00 | H24: 3 | I24: 3 | J24: 2 | K24: 2 | L24: 2 | M24: 2 | N24: 3 | O24: 2 | P24: 1 | Q24: 2 | U24: 12 | V24: 8 | W24: 1 | Y24: 1 | Z24: 3 | AA24: 3 | AB24: 3 | AC24: 1 | AD24: 1 | AE24: Design | AF24: 3 | AG24: 2 | AH24: 2 | AL24: 2 | AM24: 1 | AN24: 2 | AQ24: 3 | AR24: Design | AS24: 1 | AT24: 1 | AU24: design | AX24: design | AY24: 2
B25: 13 | C25: Multi flow fire hose nozzle for 65mm | D25: No | E25: 4 | F25: =6000*1.35 -> R 8,100.00 | G25: =ROUND(E25*F25,2) -> R32,400.00 | BA25: 4
C26: Painting & Corrosion Protection | E26: 0
B27: 14 | C27: Allow for preperation and painting of all exposed risers to the requirements of the regulations and/or specifications of the client, principal agent or engineer. | D27: Item | E27: 0 | F27: =39375*1.35 -> R 53,156.25 | G27: =ROUND(E27*F27,2) -> 0
C28: Testing and commissioning
B29: 15 | C29: Allow for testing and commissioning of the entire fire installation in accordance with the Engineer's requirements | D29: Item | G29: To be calculated
B30: 16 | C30: Allow for preparation, wrapping with Denso Tape of all underground piping to the requirements of SANS and Departmental Standards | D30: Item | E30: =SUM(H30:BA30) -> 0 | F30: R 27,562.50 | G30: =ROUND(E30*F30,2) -> 0
B31: 17 | C31: Concrete Hydrant Pedestal 600mm above ground apinted golden yellow | D31: Item | E31: 0 | F31: =10968.75*1.35 -> R 14,807.81 | G31: =ROUND(E31*F31,2) -> 0
B32: 18 | C32: Hydrant Hose Reel Fire Water Booster Pump arrangement (SANS 10252-1) | E32: 0
B33: 19 | C33: Booster Fire Water Pump Arrangement with all valves and interconnected pipework to deliver 1200 l/min @ 600 kPA: | E33: 0
B34: (a) | C34: 30kW Electrical Pump | D34: Item | E34: 0 | F34: =278444.69*1.35 -> R 375,900.33 | G34: =ROUND(E34*F34,2) -> 0
B35: (b) | C35: 35kW Diesel Pump | D35: Item | E35: 0 | F35: =471861.46*1.35 -> R 637,012.97 | G35: =ROUND(E35*F35,2) -> 0
B36: (c) | C36: 25m³ Galvanized Sectional Storage Tank on 1000mm Concrete Pedestal | D36: Item | E36: 0 | F36: =193073.1*1.35 -> R 260,648.69 | G36: =ROUND(E36*F36,2) -> 0
B37: (d) | C37: Control System complete with all sensors, pilot valves, automatic starters and field devices. | D37: Item | E37: 0 | F37: =31312.97*1.35 -> R 42,272.51 | G37: =ROUND(E37*F37,2) -> 0
B38: (e) | C38: Remote Repeater Control Panel for Control Room | D38: Item | E38: 0 | F38: =18287.25*1.35 -> R 24,687.79 | G38: 0
B39: 20 | C39: 3 x Sets Operating and Maintenance Manuals | D39: Item | E39: 0 | F39: =9562.5*1.35 -> R 12,909.38 | G39: 0
B40: 21 | C40: 100A 3 Phase cable supply (__m) connection from Main DB inside 50mm diameter sleeve | D40: Item | E40: 0 | F40: =19084.07*1.35 -> R 25,763.49 | G40: 0
B41: 22 | C41: Excavation in tarred area and under brick walls | D41: m³ | E41: 0 | F41: =148*1.35 -> R 199.80 | G41: 0
B42: 23 | C42: Back filling with sifted soil and compaction to standard | D42: m³ | E42: 0 | F42: =293*1.35 -> R 395.55 | G42: 0
B43: 24 | C43: Re-instate tarred area | D43: m³ | E43: =SUM(H43:BA43) -> 0 | F43: 0 | G43: 0
B44: 25
B45: 26
C47: FIRE DETECTION SYSTEM
B49: 28 | C49: Design of the Fire Detection System | D49: Sum | E49: =SUM(H49:BA49) -> 0 | F49: =292.98*1.35 -> R 395.52 | G49: Designing | H49: Designing | K49: Designing | M49: Designing | P49: Designing | W49: Designing | X49: Designing | Y49: Designing | AH49: Designing | AI49: Designing | AJ49: Designing | AK49: Designing | AL49: Designing | AP49: Designing | AY49: Designing
C51: BUILDING WORKS
C53: FENCING
B54: 25 | C54: Remove existing Damaged Fence | D54: m² | E54: =SUM(H54:BA54) -> 0 | G54: =ROUND(E54*F54,2) -> 0
B56: 26 | C56: Reinstating the new Fencing including poles, stays and electrical shock wires. | D56: m² | E56: =SUM(H56:BA56) -> 0 | G56: =ROUND(E56*F56,2) -> 0
C58: CLEANING
C59: House-Keeping | G59: Managerial
B60: 27 | C60: Remove all unnecessary items laying around the building and cart aways to the specified site by the engineer. Including washing the floors with dripped liquids to them. | D60: sum | E60: =SUM(H60:BA60) -> 0 | G60: =ROUND(E60*F60,2) -> 0
C62: CEILING
B63: 28 | C63: Remove existing Damaged Ceiling, | D63: m² | E63: =SUM(H63:BA63) -> 0 | G63: =ROUND(E63*F63,2) -> 0
B65: 29 | C65: Reinstating of New Ceiling | D65: m² | E65: =SUM(H65:BA65) -> 0 | G65: =ROUND(E65*F65,2) -> 0
C67: LIGHTING
B68: 30 | C68: Replace all missing emergency evacuation light fittings which are missing in the evacuation staircases | D68: No | E68: =SUM(H68:BA68) -> 0 | G68: Design
C70: GLAZING
B71: 31 | C71: Replace all missing and broken glass tubes used in the barrel bolt devices at exit doors (Glass Size ….) | D71: No | E71: =SUM(H71:BA71) -> 36 | G71: R150.00 | H71: 24 | P71: 4 | V71: 8
C73: STAIRCASE NON-SLIP STRIPS
B74: 32 | C74: Replace the non-slip strips on those stairs which are missing. | D74: m | E74: 1 | F74: =108.02*1.35 -> R 145.83 | G74: To be calculated | I74: =3*(8*0.5) -> 12
C78: SUB-TOTAL carried forward to Bill Summary Page | G78: =SUM(G11:G77) -> R 2,528,048.36
